[Event "Titled Tuesday Blitz January 25 2022"]
[White "Wagner, Dennis"]
[Black "Agasarov, Benik"]
[WhiteFideId "24650684"]
[BlackFideId "13314823"]
[WhiteElo "2355"]
[BlackElo "2578"]
[Result "0-1"]
[Round "05"]
[TimeControl "180+1"]
[Date "2022.01.26"]
[WhiteClock "0:00:32"]
[BlackClock "0:00:48"]

1. d4 {[%clk 0:03:00]}  Nf6 {[%clk 0:02:57]} 2. c4 {[%clk 0:02:59]}  g6 {[%clk 0:02:52]} 3. h4 {[%clk 0:02:59]}  Bg7 {[%clk 0:02:50]} 4. Nc3 {[%clk 0:02:56]}  c5 {[%clk 0:02:27]} 5. d5 {[%clk 0:02:56]}  d6 {[%clk 0:02:26]} 6. e4 {[%clk 0:02:56]}  b5 {[%clk 0:02:21]} 7. cxb5 {[%clk 0:02:55]}  a6 {[%clk 0:02:21]} 8. a4 {[%clk 0:02:55]}  axb5 {[%clk 0:02:11]} 9. Bxb5+ {[%clk 0:02:54]}  Bd7 {[%clk 0:02:11]} 10. Bd2 {[%clk 0:02:52]}  Bxb5 {[%clk 0:02:06]} 11. axb5 {[%clk 0:02:52]}  Rxa1 {[%clk 0:02:06]} 12. Qxa1 {[%clk 0:02:52]}  Nbd7 {[%clk 0:02:07]} 13. Nge2 {[%clk 0:02:49]}  O-O {[%clk 0:02:06]} 14. Qa6 {[%clk 0:02:35]}  Nb6 {[%clk 0:02:01]} 15. b3 {[%clk 0:02:26]}  Nfd7 {[%clk 0:01:55]} 16. h5 {[%clk 0:02:14]}  Ne5 {[%clk 0:01:50]} 17. h6 {[%clk 0:01:44]}  Nd3+ {[%clk 0:01:49]} 18. Kf1 {[%clk 0:01:43]}  Nb4 {[%clk 0:01:41]} 19. Qa5 {[%clk 0:01:32]}  Bf6 {[%clk 0:01:32]} 20. g4 {[%clk 0:01:29]}  Nc4 {[%clk 0:01:28]} 21. Qxd8 {[%clk 0:01:22]}  Nxd2+ {[%clk 0:01:27]} 22. Kg2 {[%clk 0:01:17]}  Rxd8 {[%clk 0:01:26]} 23. f4 {[%clk 0:01:15]}  Nd3 {[%clk 0:01:18]} 24. g5 {[%clk 0:00:56]}  Nxf4+ {[%clk 0:01:13]} 25. Kf2 {[%clk 0:00:51]}  Nxe2 {[%clk 0:01:06]} 26. gxf6 {[%clk 0:00:45]}  Nxc3 {[%clk 0:01:04]} 27. fxe7 {[%clk 0:00:46]}  Ndxe4+ {[%clk 0:01:03]} 28. Kg2 {[%clk 0:00:42]}  Re8 {[%clk 0:01:02]} 29. b6 {[%clk 0:00:42]}  Nxd5 {[%clk 0:00:56]} 30. b7 {[%clk 0:00:39]}  Nxe7 {[%clk 0:00:56]} 31. Ra1 {[%clk 0:00:39]}  Rb8 {[%clk 0:00:56]} 32. Ra8 {[%clk 0:00:39]}  Nc6 {[%clk 0:00:56]} 33. Ra6 {[%clk 0:00:38]}  Rxb7 {[%clk 0:00:48]} 34. Rxc6 {[%clk 0:00:37]}  f5 {[%clk 0:00:48]} 35. Rc8+ {[%clk 0:00:35]}  Kf7 {[%clk 0:00:47]} 36. Rh8 {[%clk 0:00:36]}  Kf6 {[%clk 0:00:48]} 37. Kh2 {[%clk 0:00:32]}  Kg5 {[%clk 0:00:48]} 0-1


[Site "https://www.chess.com"]

[Event "Titled Tuesday Blitz January 25 2022"]
[White "Willow, Jonah B"]
[Black "Deac, Bogdan-Daniel"]
[WhiteFideId "438804"]
[BlackFideId "1226380"]
[WhiteElo "2877"]
[BlackElo "3011"]
[Result "0-1"]
[Round "05"]
[TimeControl "180+1"]
[Date "2022.01.26"]
[WhiteClock "0:00:30"]
[BlackClock "0:00:30"]

1. e4 {[%clk 0:03:00]}  c5 {[%clk 0:03:00]} 2. Nf3 {[%clk 0:03:01]}  Nc6 {[%clk 0:02:59]} 3. d4 {[%clk 0:03:01]}  cxd4 {[%clk 0:02:59]} 4. Nxd4 {[%clk 0:03:02]}  Nf6 {[%clk 0:03:00]} 5. Nc3 {[%clk 0:03:02]}  e5 {[%clk 0:03:00]} 6. Ndb5 {[%clk 0:03:03]}  d6 {[%clk 0:03:00]} 7. Bg5 {[%clk 0:03:03]}  a6 {[%clk 0:03:00]} 8. Na3 {[%clk 0:03:04]}  Be6 {[%clk 0:03:00]} 9. Nc4 {[%clk 0:03:03]}  Rb8 {[%clk 0:02:59]} 10. Ne3 {[%clk 0:02:41]}  Be7 {[%clk 0:02:51]} 11. g3 {[%clk 0:02:38]}  Nxe4 {[%clk 0:02:25]} 12. Nxe4 {[%clk 0:02:11]}  Bxg5 {[%clk 0:02:24]} 13. Nxd6+ {[%clk 0:02:10]}  Kf8 {[%clk 0:01:58]} 14. Bg2 {[%clk 0:02:07]}  Qa5+ {[%clk 0:01:15]} 15. c3 {[%clk 0:01:36]}  Rd8 {[%clk 0:01:12]} 16. Qh5 {[%clk 0:01:12]}  Bxe3 {[%clk 0:01:07]} 17. Nxb7 {[%clk 0:01:13]}  Bd2+ {[%clk 0:01:06]} 18. Kd1 {[%clk 0:01:01]}  Bxc3+ {[%clk 0:00:59]} 19. Nxd8 {[%clk 0:01:00]}  Qxd8+ {[%clk 0:00:59]} 20. Ke2 {[%clk 0:00:53]}  Bc4+ {[%clk 0:00:41]} 21. Kf3 {[%clk 0:00:44]}  Qd5+ {[%clk 0:00:37]} 22. Kg4 {[%clk 0:00:37]}  Qxg2 {[%clk 0:00:34]} 23. Qf5 {[%clk 0:00:30]}  Be6 {[%clk 0:00:30]} 0-1


[Site "https://www.chess.com"]

[Event "Titled Tuesday Blitz January 25 2022"]
[White "Zarubitski, Viachaslau"]
[Black "Jobava, Baadur"]
[WhiteFideId "13509373"]
[BlackFideId "13601520"]
[WhiteElo "2325"]
[BlackElo "2617"]
[Result "1/2-1/2"]
[Round "05"]
[TimeControl "180+1"]
[Date "2022.01.26"]
[WhiteClock "0:01:06"]
[BlackClock "0:00:30"]

1. d4 {[%clk 0:03:00]}  d5 {[%clk 0:02:54]} 2. c4 {[%clk 0:03:00]}  dxc4 {[%clk 0:02:55]} 3. Nf3 {[%clk 0:02:58]}  Nf6 {[%clk 0:02:55]} 4. e3 {[%clk 0:02:56]}  Bg4 {[%clk 0:02:55]} 5. Bxc4 {[%clk 0:02:55]}  e6 {[%clk 0:02:56]} 6. h3 {[%clk 0:02:53]}  Bh5 {[%clk 0:02:56]} 7. Nc3 {[%clk 0:02:53]}  Nc6 {[%clk 0:02:55]} 8. Bb5 {[%clk 0:02:50]}  Bb4 {[%clk 0:02:55]} 9. Qa4 {[%clk 0:02:48]}  Bxf3 {[%clk 0:02:54]} 10. gxf3 {[%clk 0:02:46]}  O-O {[%clk 0:02:55]} 11. Bd2 {[%clk 0:02:45]}  Bxc3 {[%clk 0:02:33]} 12. Bxc3 {[%clk 0:02:45]}  Qd5 {[%clk 0:02:33]} 13. Be2 {[%clk 0:02:41]}  Rfd8 {[%clk 0:02:23]} 14. Rg1 {[%clk 0:02:40]}  Qf5 {[%clk 0:02:08]} 15. Qb5 {[%clk 0:02:23]}  Qxb5 {[%clk 0:01:48]} 16. Bxb5 {[%clk 0:02:24]}  g6 {[%clk 0:01:42]} 17. Rc1 {[%clk 0:02:14]}  Rab8 {[%clk 0:01:32]} 18. Ke2 {[%clk 0:02:07]}  a6 {[%clk 0:01:28]} 19. Bxc6 {[%clk 0:02:04]}  bxc6 {[%clk 0:01:29]} 20. b3 {[%clk 0:02:04]}  Rd5 {[%clk 0:01:25]} 21. Bd2 {[%clk 0:02:00]}  Rb6 {[%clk 0:01:25]} 22. Rc4 {[%clk 0:01:58]}  Rh5 {[%clk 0:01:13]} 23. Rgc1 {[%clk 0:01:57]}  Rxh3 {[%clk 0:01:12]} 24. Rxc6 {[%clk 0:01:58]}  Rxc6 {[%clk 0:01:05]} 25. Rxc6 {[%clk 0:01:59]}  h5 {[%clk 0:01:04]} 26. Rxa6 {[%clk 0:01:47]}  h4 {[%clk 0:01:04]} 27. e4 {[%clk 0:01:47]}  Nh5 {[%clk 0:01:03]} 28. Rc6 {[%clk 0:01:39]}  Rh2 {[%clk 0:01:01]} 29. Rc1 {[%clk 0:01:35]}  h3 {[%clk 0:00:49]} 30. Rg1 {[%clk 0:01:31]}  Rg2 {[%clk 0:00:48]} 31. Kf1 {[%clk 0:01:22]}  Ng3+ {[%clk 0:00:48]} 32. fxg3 {[%clk 0:01:21]}  Rxd2 {[%clk 0:00:49]} 33. Rh1 {[%clk 0:01:22]}  h2 {[%clk 0:00:45]} 34. a4 {[%clk 0:01:17]}  Rb2 {[%clk 0:00:39]} 35. a5 {[%clk 0:01:15]}  Kg7 {[%clk 0:00:36]} 36. a6 {[%clk 0:01:15]}  Rxb3 {[%clk 0:00:37]} 37. Kg2 {[%clk 0:01:14]}  Rb2+ {[%clk 0:00:34]} 38. Kh3 {[%clk 0:01:12]}  Ra2 {[%clk 0:00:35]} 39. Rxh2 {[%clk 0:01:10]}  Rxa6 {[%clk 0:00:35]} 40. Rc2 {[%clk 0:01:11]}  Ra4 {[%clk 0:00:31]} 41. Rxc7 {[%clk 0:01:06]}  Rxd4 {[%clk 0:00:30]} 1/2-1/2


[Site "https://www.chess.com"]

[Event "Titled Tuesday Blitz January 25 2022"]
[White "Zhigalko, Sergei"]
[Black "Ezat, Mohamed"]
[WhiteFideId "13502956"]
[BlackFideId "10600906"]
[WhiteElo "2662"]
[BlackElo "2386"]
[Result "1-0"]
[Round "05"]
[TimeControl "180+1"]
[Date "2022.01.26"]
[WhiteClock "0:00:03"]
[BlackClock "0:00:01"]

1. e4 {[%clk 0:02:58]}  c6 {[%clk 0:03:00]} 2. d4 {[%clk 0:02:58]}  d5 {[%clk 0:03:00]} 3. e5 {[%clk 0:02:58]}  c5 {[%clk 0:02:59]} 4. Nf3 {[%clk 0:02:59]}  Nc6 {[%clk 0:02:59]} 5. dxc5 {[%clk 0:02:59]}  Bg4 {[%clk 0:02:59]} 6. c3 {[%clk 0:02:59]}  e6 {[%clk 0:02:57]} 7. Be3 {[%clk 0:02:59]}  Nge7 {[%clk 0:02:54]} 8. Bb5 {[%clk 0:02:58]}  Bxf3 {[%clk 0:02:53]} 9. Qxf3 {[%clk 0:02:56]}  Qc7 {[%clk 0:02:51]} 10. Bd4 {[%clk 0:02:53]}  Nf5 {[%clk 0:02:48]} 11. O-O {[%clk 0:02:49]}  g5 {[%clk 0:02:48]} 12. Qh5 {[%clk 0:02:15]}  Be7 {[%clk 0:02:09]} 13. Nd2 {[%clk 0:02:03]}  Ng7 {[%clk 0:02:06]} 14. Qe2 {[%clk 0:01:51]}  h5 {[%clk 0:02:05]} 15. b4 {[%clk 0:01:46]}  Nf5 {[%clk 0:02:03]} 16. Nb3 {[%clk 0:01:39]}  g4 {[%clk 0:02:03]} 17. Rfe1 {[%clk 0:01:30]}  h4 {[%clk 0:01:37]} 18. Bd3 {[%clk 0:01:06]}  g3 {[%clk 0:01:27]} 19. Bxf5 {[%clk 0:01:02]}  exf5 {[%clk 0:01:22]} 20. e6 {[%clk 0:00:58]}  f6 {[%clk 0:01:22]} 21. fxg3 {[%clk 0:00:45]}  hxg3 {[%clk 0:01:20]} 22. h3 {[%clk 0:00:45]}  O-O-O {[%clk 0:01:21]} 23. Qf3 {[%clk 0:00:43]}  Rdg8 {[%clk 0:00:48]} 24. Qxd5 {[%clk 0:00:27]}  Kb8 {[%clk 0:00:37]} 25. Qxf5 {[%clk 0:00:21]}  Rg5 {[%clk 0:00:37]} 26. Qf3 {[%clk 0:00:21]}  Rgh5 {[%clk 0:00:30]} 27. Rad1 {[%clk 0:00:19]}  a6 {[%clk 0:00:27]} 28. a4 {[%clk 0:00:19]}  a5 {[%clk 0:00:23]} 29. b5 {[%clk 0:00:14]}  Ne5 {[%clk 0:00:23]} 30. Qe2 {[%clk 0:00:08]}  Rf5 {[%clk 0:00:18]} 31. Rf1 {[%clk 0:00:04]}  Rg5 {[%clk 0:00:08]} 32. b6 {[%clk 0:00:04]}  Qc6 {[%clk 0:00:07]} 33. Nxa5 {[%clk 0:00:04]}  Qxa4 {[%clk 0:00:06]} 34. Ra1 {[%clk 0:00:05]}  Qe8 {[%clk 0:00:05]} 35. Qa2 {[%clk 0:00:03]}  Rxh3 {[%clk 0:00:01]} 36. Nc6+ {[%clk 0:00:03]} 1-0


[Site "https://www.chess.com"]

[Event "Titled Tuesday Blitz January 25 2022"]
[White "Aditya Mittal"]
[Black "Baules Rodriguez, Jorge Luis"]
[WhiteFideId "35042025"]
[BlackFideId "6600247"]
[WhiteElo "2287"]
[BlackElo "2375"]
[Result "0-1"]
[Round "06"]
[TimeControl "180+1"]
[Date "2022.01.26"]
[WhiteClock "0:00:03"]
[BlackClock "0:00:06"]

1. d4 {[%clk 0:03:00]}  Nf6 {[%clk 0:02:57]} 2. c4 {[%clk 0:03:01]}  g6 {[%clk 0:02:57]} 3. Nc3 {[%clk 0:03:02]}  d5 {[%clk 0:02:57]} 4. cxd5 {[%clk 0:03:01]}  Nxd5 {[%clk 0:02:58]} 5. Bd2 {[%clk 0:03:01]}  Bg7 {[%clk 0:02:57]} 6. e4 {[%clk 0:03:02]}  Nb6 {[%clk 0:02:57]} 7. Be3 {[%clk 0:03:02]}  O-O {[%clk 0:02:57]} 8. Bb5 {[%clk 0:03:03]}  a6 {[%clk 0:02:43]} 9. Be2 {[%clk 0:02:59]}  Nc6 {[%clk 0:02:42]} 10. d5 {[%clk 0:02:59]}  Ne5 {[%clk 0:02:40]} 11. Bd4 {[%clk 0:02:58]}  c6 {[%clk 0:02:24]} 12. f4 {[%clk 0:02:37]}  Ned7 {[%clk 0:02:07]} 13. dxc6 {[%clk 0:02:35]}  bxc6 {[%clk 0:02:01]} 14. Bxg7 {[%clk 0:02:35]}  Kxg7 {[%clk 0:02:02]} 15. Nf3 {[%clk 0:02:36]}  Qc7 {[%clk 0:01:58]} 16. e5 {[%clk 0:02:10]}  Nc5 {[%clk 0:01:47]} 17. O-O {[%clk 0:02:02]}  Bf5 {[%clk 0:01:38]} 18. Qd4 {[%clk 0:01:54]}  Ne6 {[%clk 0:01:34]} 19. Qe3 {[%clk 0:01:54]}  Rfd8 {[%clk 0:01:24]} 20. Rfd1 {[%clk 0:01:50]}  c5 {[%clk 0:01:16]} 21. Rac1 {[%clk 0:01:34]}  Bg4 {[%clk 0:00:57]} 22. Ne4 {[%clk 0:01:26]}  Nd5 {[%clk 0:00:51]} 23. Rxd5 {[%clk 0:01:03]}  Rxd5 {[%clk 0:00:49]} 24. Bc4 {[%clk 0:01:04]}  Rdd8 {[%clk 0:00:23]} 25. Bxe6 {[%clk 0:01:04]}  Bxe6 {[%clk 0:00:22]} 26. Nxc5 {[%clk 0:01:04]}  Qb6 {[%clk 0:00:23]} 27. Ng5 {[%clk 0:00:55]}  Rab8 {[%clk 0:00:19]} 28. b3 {[%clk 0:00:52]}  Bd5 {[%clk 0:00:18]} 29. f5 {[%clk 0:00:35]}  h6 {[%clk 0:00:16]} 30. Nh3 {[%clk 0:00:28]}  gxf5 {[%clk 0:00:15]} 31. Nf4 {[%clk 0:00:29]}  Be4 {[%clk 0:00:12]} 32. Nh5+ {[%clk 0:00:25]}  Kh7 {[%clk 0:00:12]} 33. e6 {[%clk 0:00:24]}  fxe6 {[%clk 0:00:07]} 34. Nf4 {[%clk 0:00:18]}  Rg8 {[%clk 0:00:07]} 35. g3 {[%clk 0:00:14]}  e5 {[%clk 0:00:07]} 36. Nfe6 {[%clk 0:00:12]}  Rbc8 {[%clk 0:00:08]} 37. Rf1 {[%clk 0:00:11]}  Rc6 {[%clk 0:00:08]} 38. Qc3 {[%clk 0:00:05]}  Rxe6 {[%clk 0:00:07]} 39. b4 {[%clk 0:00:03]}  Rc6 {[%clk 0:00:07]} 40. Qc4 {[%clk 0:00:02]}  Rxc5 {[%clk 0:00:05]} 41. bxc5 {[%clk 0:00:03]}  Qg6 {[%clk 0:00:05]} 42. Re1 {[%clk 0:00:01]}  Bc6 {[%clk 0:00:04]} 43. Kf2 {[%clk 0:00:01]}  f4 {[%clk 0:00:04]} 44. Rxe5 {[%clk 0:00:01]}  fxg3+ {[%clk 0:00:04]} 45. Ke2 {[%clk 0:00:02]}  Qg4+ {[%clk 0:00:03]} 46. Qxg4 {[%clk 0:00:02]}  Rxg4 {[%clk 0:00:04]} 47. Rxe7+ {[%clk 0:00:03]}  Kg6 {[%clk 0:00:04]} 48. hxg3 {[%clk 0:00:03]}  Kh5 {[%clk 0:00:04]} 49. Re5+ {[%clk 0:00:03]}  Rg5 {[%clk 0:00:05]} 50. Re6 {[%clk 0:00:02]}  Rxc5 {[%clk 0:00:05]} 51. Kd3 {[%clk 0:00:02]}  Bb5+ {[%clk 0:00:05]} 52. Kd4 {[%clk 0:00:03]}  Rg5 {[%clk 0:00:05]} 53. Kc3 {[%clk 0:00:02]}  Rxg3+ {[%clk 0:00:05]} 54. Kb4 {[%clk 0:00:03]}  Rg4+ {[%clk 0:00:05]} 55. Kc5 {[%clk 0:00:03]}  Rc4+ {[%clk 0:00:05]} 56. Kb6 {[%clk 0:00:02]}  Ra4 {[%clk 0:00:06]} 57. Re5+ {[%clk 0:00:02]}  Kg4 {[%clk 0:00:06]} 58. Re3 {[%clk 0:00:01]}  h5 {[%clk 0:00:06]} 59. a3 {[%clk 0:00:02]}  h4 {[%clk 0:00:06]} 60. Rb3 {[%clk 0:00:02]}  h3 {[%clk 0:00:06]} 61. Rb1 {[%clk 0:00:02]}  h2 {[%clk 0:00:06]} 62. Rh1 {[%clk 0:00:03]}  Kg3 {[%clk 0:00:06]} 0-1


[Site "https://www.chess.com"]

[Event "Titled Tuesday Blitz January 25 2022"]
[White "Alavkin, Arseny"]
[Black "Maghsoodloo, Parham"]
[WhiteFideId "4120612"]
[BlackFideId "12539929"]
[WhiteElo "2391"]
[BlackElo "2630"]
[Result "0-1"]
[Round "06"]
[TimeControl "180+1"]
[Date "2022.01.26"]
[WhiteClock "0:01:30"]
[BlackClock "0:01:43"]

1. d4 {[%clk 0:02:49]}  Nf6 {[%clk 0:02:58]} 2. c4 {[%clk 0:02:50]}  e6 {[%clk 0:02:59]} 3. Nc3 {[%clk 0:02:49]}  d5 {[%clk 0:02:59]} 4. cxd5 {[%clk 0:02:48]}  exd5 {[%clk 0:03:00]} 5. Bg5 {[%clk 0:02:48]}  c6 {[%clk 0:03:00]} 6. e3 {[%clk 0:02:48]}  Bf5 {[%clk 0:03:00]} 7. Qf3 {[%clk 0:02:47]}  Bg6 {[%clk 0:03:01]} 8. Bxf6 {[%clk 0:02:48]}  Qxf6 {[%clk 0:03:02]} 9. Qxf6 {[%clk 0:02:48]}  gxf6 {[%clk 0:03:03]} 10. h4 {[%clk 0:02:48]}  h5 {[%clk 0:03:03]} 11. Nh3 {[%clk 0:02:48]}  Bd6 {[%clk 0:03:03]} 12. Ne2 {[%clk 0:02:48]}  Nd7 {[%clk 0:03:03]} 13. Nhf4 {[%clk 0:02:49]}  a5 {[%clk 0:03:04]} 14. Ng3 {[%clk 0:02:49]}  a4 {[%clk 0:02:48]} 15. Be2 {[%clk 0:02:38]}  a3 {[%clk 0:02:47]} 16. bxa3 {[%clk 0:02:38]}  Rxa3 {[%clk 0:02:41]} 17. O-O {[%clk 0:02:21]}  Ke7 {[%clk 0:02:38]} 18. Ngxh5 {[%clk 0:02:01]}  Rha8 {[%clk 0:02:22]} 19. Nxg6+ {[%clk 0:02:01]}  fxg6 {[%clk 0:02:22]} 20. Nf4 {[%clk 0:02:02]}  Bxf4 {[%clk 0:02:23]} 21. exf4 {[%clk 0:02:02]}  Rxa2 {[%clk 0:02:23]} 22. Rxa2 {[%clk 0:02:01]}  Rxa2 {[%clk 0:02:24]} 23. Bd3 {[%clk 0:02:00]}  f5 {[%clk 0:02:22]} 24. Rb1 {[%clk 0:01:51]}  b5 {[%clk 0:02:16]} 25. Rc1 {[%clk 0:01:46]}  Rd2 {[%clk 0:02:15]} 26. Bb1 {[%clk 0:01:45]}  Kd6 {[%clk 0:02:14]} 27. h5 {[%clk 0:01:42]}  gxh5 {[%clk 0:02:14]} 28. Bxf5 {[%clk 0:01:42]}  Nf6 {[%clk 0:02:09]} 29. Re1 {[%clk 0:01:41]}  Kc7 {[%clk 0:02:01]} 30. Re7+ {[%clk 0:01:39]}  Kb6 {[%clk 0:02:01]} 31. Re6 {[%clk 0:01:39]}  Ng4 {[%clk 0:02:01]} 32. Bxg4 {[%clk 0:01:28]}  hxg4 {[%clk 0:02:02]} 33. Kh2 {[%clk 0:01:29]}  b4 {[%clk 0:01:51]} 34. Kg3 {[%clk 0:01:29]}  b3 {[%clk 0:01:50]} 35. Re3 {[%clk 0:01:29]}  b2 {[%clk 0:01:48]} 36. Rb3+ {[%clk 0:01:29]}  Ka5 {[%clk 0:01:49]} 37. Kxg4 {[%clk 0:01:30]}  Ka4 {[%clk 0:01:47]} 38. Rb8 {[%clk 0:01:30]}  Ka3 {[%clk 0:01:45]} 39. Kg5 {[%clk 0:01:29]}  Rxd4 {[%clk 0:01:46]} 40. Rxb2 {[%clk 0:01:25]}  Kxb2 {[%clk 0:01:46]} 41. f5 {[%clk 0:01:26]}  Rd2 {[%clk 0:01:42]} 42. f6 {[%clk 0:01:26]}  Rxf2 {[%clk 0:01:43]} 43. g4 {[%clk 0:01:27]}  d4 {[%clk 0:01:43]} 44. Kg6 {[%clk 0:01:27]}  d3 {[%clk 0:01:44]} 45. f7 {[%clk 0:01:28]}  d2 {[%clk 0:01:45]} 46. Kg7 {[%clk 0:01:29]}  d1=Q {[%clk 0:01:45]} 47. g5 {[%clk 0:01:30]}  Qd4+ {[%clk 0:01:44]} 48. Kg8 {[%clk 0:01:31]}  Qg4 {[%clk 0:01:43]} 49. f8=Q {[%clk 0:01:29]}  Rxf8+ {[%clk 0:01:43]} 50. Kh7 {[%clk 0:01:30]} 0-1


[Site "https://www.chess.com"]

[Event "Titled Tuesday Blitz January 25 2022"]
[White "Arabidze, Meri"]
[Black "Kravtsiv, Martyn"]
[WhiteFideId "13604040"]
[BlackFideId "14113147"]
[WhiteElo "2329"]
[BlackElo "2694"]
[Result "0-1"]
[Round "06"]
[TimeControl "180+1"]
[Date "2022.01.26"]
[WhiteClock "0:00:02"]
[BlackClock "0:00:09"]

1. Nf3 {[%clk 0:03:00]}  d5 {[%clk 0:02:58]} 2. g3 {[%clk 0:03:00]}  c5 {[%clk 0:02:58]} 3. Bg2 {[%clk 0:03:01]}  Nf6 {[%clk 0:02:58]} 4. O-O {[%clk 0:03:00]}  Nc6 {[%clk 0:02:58]} 5. d4 {[%clk 0:03:01]}  cxd4 {[%clk 0:02:58]} 6. Nxd4 {[%clk 0:03:01]}  e5 {[%clk 0:02:58]} 7. Nxc6 {[%clk 0:03:01]}  bxc6 {[%clk 0:02:59]} 8. c4 {[%clk 0:03:02]}  Be6 {[%clk 0:02:59]} 9. Nc3 {[%clk 0:03:02]}  Rc8 {[%clk 0:02:56]} 10. Bg5 {[%clk 0:02:53]}  d4 {[%clk 0:02:53]} 11. Ne4 {[%clk 0:02:49]}  Be7 {[%clk 0:02:36]} 12. Nxf6+ {[%clk 0:02:43]}  gxf6 {[%clk 0:02:36]} 13. Bh6 {[%clk 0:02:43]}  Bxc4 {[%clk 0:02:34]} 14. Qa4 {[%clk 0:02:31]}  Bb5 {[%clk 0:02:24]} 15. Qxa7 {[%clk 0:02:30]}  Qc7 {[%clk 0:02:12]} 16. Qxc7 {[%clk 0:02:25]}  Rxc7 {[%clk 0:02:13]} 17. Rfc1 {[%clk 0:02:20]}  c5 {[%clk 0:02:06]} 18. Rc2 {[%clk 0:02:04]}  Kd7 {[%clk 0:02:02]} 19. a4 {[%clk 0:01:57]}  Bc6 {[%clk 0:01:55]} 20. Bh3+ {[%clk 0:01:34]}  Kd6 {[%clk 0:01:55]} 21. Bf5 {[%clk 0:01:34]}  Ra8 {[%clk 0:01:48]} 22. a5 {[%clk 0:01:30]}  Rca7 {[%clk 0:01:41]} 23. Bd2 {[%clk 0:01:29]}  Bd8 {[%clk 0:01:40]} 24. b4 {[%clk 0:01:26]}  Bb5 {[%clk 0:01:07]} 25. Rxc5 {[%clk 0:01:14]}  Bxe2 {[%clk 0:01:06]} 26. Be4 {[%clk 0:01:14]}  Rb8 {[%clk 0:01:02]} 27. Rc6+ {[%clk 0:01:03]}  Ke7 {[%clk 0:00:57]} 28. Rac1 {[%clk 0:00:59]}  Bb5 {[%clk 0:00:58]} 29. R6c5 {[%clk 0:00:55]}  Bd7 {[%clk 0:00:56]} 30. Bxh7 {[%clk 0:00:50]}  Ke8 {[%clk 0:00:50]} 31. Bd3 {[%clk 0:00:48]}  Be7 {[%clk 0:00:50]} 32. Rc7 {[%clk 0:00:42]}  Rxc7 {[%clk 0:00:48]} 33. Rxc7 {[%clk 0:00:43]}  Bxb4 {[%clk 0:00:48]} 34. Bxb4 {[%clk 0:00:41]}  Rxb4 {[%clk 0:00:48]} 35. a6 {[%clk 0:00:42]}  Ra4 {[%clk 0:00:35]} 36. h4 {[%clk 0:00:32]}  Ra3 {[%clk 0:00:30]} 37. a7 {[%clk 0:00:21]}  Ra1+ {[%clk 0:00:25]} 38. Kh2 {[%clk 0:00:21]}  Kd8 {[%clk 0:00:25]} 39. Rb7 {[%clk 0:00:21]}  Bc6 {[%clk 0:00:25]} 40. Rb8+ {[%clk 0:00:15]}  Kc7 {[%clk 0:00:22]} 41. Rb1 {[%clk 0:00:10]}  Rxa7 {[%clk 0:00:20]} 42. g4 {[%clk 0:00:10]}  e4 {[%clk 0:00:20]} 43. Bc4 {[%clk 0:00:10]}  d3 {[%clk 0:00:18]} 44. h5 {[%clk 0:00:09]}  Kd6 {[%clk 0:00:15]} 45. Kg3 {[%clk 0:00:09]}  Bd5 {[%clk 0:00:14]} 46. Bb5 {[%clk 0:00:05]}  Rb7 {[%clk 0:00:13]} 47. h6 {[%clk 0:00:06]}  Rb8 {[%clk 0:00:13]} 48. h7 {[%clk 0:00:06]}  Rh8 {[%clk 0:00:10]} 49. Rh1 {[%clk 0:00:02]}  Kc5 {[%clk 0:00:11]} 50. Rc1+ {[%clk 0:00:02]}  Kxb5 {[%clk 0:00:09]} 0-1


[Site "https://www.chess.com"]